Cogmind - Beta 16 --- EXPLORER MODE // 2026.01.12 @ 12:48:33 Player: K.K.Y. Result: Destroyed by 98-VJI(R) with Subdweller Shrapnel Launcher Performance ------------- Evolutions (0) 0 Regions Visited (3) 600 Robots Destroyed (33) 165 Value Destroyed (816) 816 Prototype IDs (12) 240 Alien Tech Used (0) 0 Bonus (96) 96 TOTAL SCORE: 1917 Bonus ------- Follower Combat Kills 133 Friendly Fire -37 Cogmind --------- Core Integrity 0/250 Matter 294/300 Energy 98/100 System Corruption 0% Temperature Cool (0) Movement Treading (160) Location -10/Subcaves Parts ------- > --- POWER (1) -------- (None) > --- PROPULSION (2) --- Spiked Treads Spiked Treads > --- UTILITY (3) ------ Improved Heat Sink Medium Storage Unit > --- WEAPON (2) ------- Makeshift Laser Heavy Battle Rifle > --- INVENTORY (10) --- Improved Treads Spiked Treads Huge Storage Unit Improved Terrain Scanner Light Armor Plating Makeshift Light Armor Plating Beam Cannon Beam Cannon Barrage Gun Mining Laser Peak State ------------ > --- POWER ------------ (None) > --- PROPULSION ------- Improved Treads Spiked Treads > --- UTILITY ---------- Improved Heat Sink Medium Storage Unit Structural Scanner > --- WEAPON ----------- Makeshift Laser Heavy Battle Rifle > --- INVENTORY -------- Light Treads Improved Treads Huge Storage Unit Improved Terrain Scanner Light Armor Plating Makeshift Light Armor Plating Beam Cannon Beam Cannon Barrage Gun Mining Laser [Rating: 18] Favorites ----------- Power Ion Engine Engine Ion Engine Propulsion Improved Treads Treads Improved Treads Utility Structural Scanner Device Structural Scanner Storage Medium Storage Unit Protection Light Armor Plating Weapon Beam Cannon Energy Gun Makeshift Laser Energy Cannon Beam Cannon Ballistic Gun Heavy Battle Rifle Ballistic Cannon Battle Cannon Build | -11 -10 -10 -10 ------- Run | Yrd Mat Min Sub Slots Evolved 1 | . 1 . . Power . | . . . . Propulsion . | . . . . Utility 1 | . 1 . . Weapon . | . . . . Parts Attached 25 | 6 7 . 12 Power 1 | 1 . . . Engine 1 | 1 . . . Core . | . . . . Reactor . | . . . . Propulsion 9 | 2 2 . 5 Treads 9 | 2 2 . 5 Leg . | . . . . Wheel . | . . . . Hover . | . . . . Flight . | . . . . Utility 6 | 2 3 . 1 Device 4 | 1 2 . 1 Storage 1 | . 1 . . Processor . | . . . . Hackware . | . . . . Protection 1 | 1 . . . Artifact . | . . . . Weapon 9 | 1 2 . 6 Energy Gun 3 | 1 . . 2 Energy Cannon 2 | . 2 . . Ballistic Gun 2 | . . . 2 Ballistic Cannon 2 | . . . 2 Launcher . | . . . . Special Weapon . | . . . . Impact Weapon . | . . . . Slashing Weapon . | . . . . Piercing Weapon . | . . . . Special Melee Weapon . | . . . . Unidentified Prototypes . | . . . . Parts Lost 6 | . . . 6 Power 1 | . . . 1 Propulsion 1 | . . . 1 Utility 2 | . . . 2 Weapon 2 | . . . 2 Highest Loss Streak 3 | . . . 3 To Critical Strikes . | . . . . Average Backups 8 | 2 4 8 9 Power . | . . . . Propulsion 1 | . . 1 1 Utility 4 | 1 2 4 4 Weapon 2 | . 2 2 3 Tool/Special . | . . . . Unused Backups 12 | . 1 1 10 Power . | . . . . Propulsion 3 | . 1 1 1 Utility 6 | . . . 6 Weapon 3 | . . . 3 Tool/Special . | . . . . Average Slot Usage (%) 92 | . 97 100 88 Engine 6 | . 12 12 3 Treads 24 | . 25 25 23 Device 25 | . 31 25 24 Storage 10 | . . 12 12 Energy Gun 1 | . 1 . 2 Energy Cannon 12 | . 23 25 6 Ballistic Gun 6 | . . . 9 Ballistic Cannon 3 | . . . 4 Peak Build Rating 18 | 6 12 11 18 Average Rating 12 | 4 10 10 13 On Entrance 6 | . 6 10 11 Avg Prop Armor Cover (%) . | . . . . Naked Turns . | . . . . Heaviest Build 24 | 11 23 23 24 Greatest Support 46 | 40 46 46 46 Greatest Overweight (x) . | . . . . Average Overweight (x) . | . . . . Largest Inventory Capacity 10 | 5 10 10 10 Average Capacity 9 | 5 5 10 10 Most Carried 10 | 3 5 10 10 Average Carried 8 | 2 4 8 9 Final Capacity 10 | 5 10 10 10 Final Carried 10 | 3 5 10 10 Class Distribution -------------------- 100% | Hacker-Mutant Dominant Class ---------------- Hacker-Mutant | -10/Materials Hacker-Mutant | -10/Mines Hacker-Mutant | -10/Subcaves Resources | -11 -10 -10 -10 ----------- Run | Yrd Mat Min Sub Matter Collected 1136 | 260 60 10 806 Remotely . | . . . . Salvage Created 1162 | 128 121 169 744 Parts 73 | 9 9 8 47 Haulers Intercepted 2 | . 2 . . Recyclers Shooed . | . . . . Parts Field Recycled . | . . . . Retrieved Matter . | . . . . Parts Self-Destructed . | . . . . Prevented . | . . . . Parts Restored . | . . . . Kills | -11 -10 -10 -10 ------- Run | Yrd Mat Min Sub Combat Hostiles Destroyed 22 | . . 1 21 Guns 8 | . . . 8 Cannons 14 | . . 1 13 Classes Destroyed 10 | 2 2 1 5 Builder 1 | . 1 . . Tunneler 2 | 2 . . . Hauler 2 | . 2 . . Recycler 3 | 1 . 2 . Turret 2 | . . . 2 Swarmer 6 | . . 1 5 Sentry 1 | . . . 1 Artisan 2 | . . . 2 Subdweller 15 | . . . 15 Zionite 1 | . . . 1 Best Kill Streak 6 | 2 2 2 6 Combat Bots Only 4 | . . 1 4 Max Kills in Single Turn 2 | 1 2 1 1 Gunslinging . | . . . . Exploded . | . . . . Melee . | . . . . Uniques/NPCs Destroyed . | . . . . Combat | -11 -10 -10 -10 -------- Run | Yrd Mat Min Sub Hostile Shots Fired 167 | . . 15 152 Missed 52 | . . 6 46 Hits 115 | . . 9 106 Projectile 115 | . . 9 106 AOE 5 | . . . 5 Critical Strikes 7 | . . 2 5 Damage Taken 1503 | . . 71 1432 Core 256 | . . 9 247 Absorbed by Shields . | . . . . Ignored by Resistances 859 | . . 43 816 Core Remaining (%) 100 | 100 . . . Volleys Fired 203 | 5 5 7 186 Largest 2 | 1 2 2 2 Hottest 120 | 50 120 120 120 Shots Fired 358 | 5 10 14 329 Gun 159 | 5 1 . 153 Cannon 199 | . 9 14 176 Launcher . | . . . . Special . | . . . . Kinetic 194 | . . . 194 Thermal 164 | 5 10 14 135 Explosive . | . . . . Electromagnetic . | . . . . Robot Hit Streak 57 | 3 6 4 57 Robot Miss Streak 2 | 1 2 1 1 Penetration Max . | . . . . Secondary Targets 1 | . . . 1 Max Gunslinging Chain 1 | . . . 1 Autonomous 9 | . . . 9 Shots Hit Robots 158 | 4 6 9 139 Core Hits 49 | 4 3 4 38 Critical Kills . | . . . . Critical Parts Destroyed . | . . . . Critical Strikes 6 | . . . 6 Burn 1 | . . . 1 Destroy 1 | . . . 1 Blast 4 | . . . 4 Melee Attacks . | . . . . Impact . | . . . . Slashing . | . . . . Piercing . | . . . . Sneak Attacks . | . . . . Combat Hostiles . | . . . . Follow-up Attacks . | . . . . Damage Inflicted 2894 | 49 121 157 2567 Guns 1012 | 49 . . 963 Cannons 1882 | . 121 157 1604 Explosions . | . . . . Melee . | . . . . Ramming . | . . . . Kinetic 1477 | . . . 1477 Thermal 1417 | 49 121 157 1090 Explosive . | . . . . Electromagnetic . | . . . . Impact . | . . . . Slashing . | . . . . Piercing . | . . . . Highest Corruption . | . . . . Average Corruption . | . . . . Corruption Purged . | . . . . Corruption Blocked . | . . . . Overload Shots . | . . . . Overflow Damage 25 | . . . 25 Projectiles 25 | . . . 25 Explosions . | . . . . Melee . | . . . . Knockbacks 3 | . . . 3 Impact . | . . . . Kinetic 3 | . . . 3 Secondary . | . . . . Self-Inflicted Damage . | . . . . Shots . | . . . . Rammed . | . . . . Targets Rammed . | . . . . Kicked . | . . . . Crushed . | . . . . Highest Temperature 232 | 32 230 232 146 Average Temperature 62 | 15 97 82 28 Received Heat Transfer 850 | . . 72 778 Siege Activations . | . . . . Martial Activations . | . . . . Shielding Activations . | . . . . Robots Disrupted . | . . . . Combat Hostiles . | . . . . Robots Corrupted . | . . . . Combat Hostiles . | . . . . Parts Fried . | . . . . Impact Corruptions . | . . . . Robots Melted . | . . . . Combat Hostiles . | . . . . Parts Melted 7 | 1 . 2 4 Heat Transferred 3222 | 148 259 333 2482 Parts Sabotaged . | . . . . Parts Stolen . | . . . . Parts Stripped . | . . . . Power Chain Reactions . | . . . . Alert | -11 -10 -10 -10 ------- Run | Yrd Mat Min Sub Maximum Alert Level . | . . . . Low Security (%) 100 | 100 100 100 . Level 1 . | . . . . Level 2 . | . . . . Level 3 . | . . . . Level 4 . | . . . . Level 5 . | . . . . High Security . | . . . . Max Security . | . . . . Peak Influence 55 | 5 12 55 . Initial . | . . . . Average 2 | 2 . 4 . Influence Increases 400 | 15 24 156 205 Destroy 0b10 Robot/C 280 | . . 120 160 Destroy 0b10 Robot/NC 40 | 15 15 10 . Destroy Leader 24 | . 4 20 . Allied During Kill 2 | . . 2 . Successful Hack 5 | . 5 . . Disable Machine 4 | . . 4 . Lose Combat Pursuer 45 | . . . 45 Influence Decreases 400 | 15 24 156 205 Time Decay 354 | 15 24 140 175 Lost Part 30 | . . . 30 Lost Ally 16 | . . 16 . Squads Dispatched . | . . . . Investigation . | . . . . Extermination . | . . . . Reinforcement . | . . . . Assault . | . . . . Garrison . | . . . . Intercept . | . . . . Searches Triggered . | . . . . Construction Impeded . | . . . . Haulers Reinforced . | . . . . Active Scanning Responses . | . . . . Cargo Convoy Interrupts . | . . . . Stealth | -11 -10 -10 -10 --------- Run | Yrd Mat Min Sub Distress Signals 1 | . 1 . . Communications Jammed . | . . . . Distress Signals . | . . . . Times Spotted 30 | . . 4 26 Peak Tracking Total 6 | . . 2 6 Tactical Retreats 1 | . . . 1 Traps | -11 -10 -10 -10 ------- Run | Yrd Mat Min Sub Traps Triggered 3 | . . . 3 Indirectly . | . . . . Trap Hack Attempts . | . . . . Triggered . | . . . . Disarmed . | . . . . Reprogrammed . | . . . . Reused . | . . . . Traps Extracted . | . . . . Installed . | . . . . Triggered . | . . . . Machines | -11 -10 -10 -10 ---------- Run | Yrd Mat Min Sub Machines Disabled 3 | . . 2 1 Max in Single Turn 1 | . . 1 1 Machines Repaired . | . . . . Machines Dismantled . | . . . . Machines Sabotaged . | . . . . Overloaded Fab Kills . | . . . . Hacking | -11 -10 -10 -10 --------- Run | Yrd Mat Min Sub Machines Accessed 4 | . 3 . 1 Terminals 3 | . 3 . . Fabricators . | . . . . Repair Stations . | . . . . Recycling Units . | . . . . Scanalyzers . | . . . . Garrison Access . | . . . . Total Hacks 5 | . 4 . 1 Successful 4 | . 3 . 1 Failed 1 | . 1 . . Catastrophic . | . . . . Database Lockouts . | . . . . Manual 4 | . 4 . . Terminals 4 | . 4 . . Fabricators . | . . . . Repair Stations . | . . . . Recycling Units . | . . . . Scanalyzers . | . . . . Garrison Access . | . . . . Terminal Hacks 1 | . . . 1 Proto ID Catalog 1 | . . . 1 Fabricator Hacks . | . . . . Repair Station Hacks . | . . . . Recycling Unit Hacks . | . . . . Scanalyzer . | . . . . Garrison Access Hacks . | . . . . Unauthorized Hacks 3 | . 3 . . Terminals 3 | . 3 . . Botnet 3 | . 3 . . Fabricators . | . . . . Repair Stations . | . . . . Recycling Units . | . . . . Scanalyzers . | . . . . Garrison Access . | . . . . Data Cores Recovered . | . . . . Used . | . . . . Hacking Detections 2 | . 2 . . Full Trace Events . | . . . . Feedback Events . | . . . . Feedback Blocked . | . . . . Robot Schematics Acquired . | . . . . Robots Built . | . . . . Authchips . | . . . . Time . | . . . . Total Robot Build Rating . | . . . . Part Schematics Acquired . | . . . . Parts Built . | . . . . Authchips . | . . . . Time . | . . . . Total Part Build Rating . | . . . . Part Studies Acquired . | . . . . Parts Repaired . | . . . . Time . | . . . . Parts Recycled . | . . . . Recycled Matter . | . . . . Retrieved Matter . | . . . . Retrieved Components . | . . . . Parts Scanalyzed . | . . . . Part Schematics Acquired . | . . . . Parts Damaged . | . . . . Bothacking | -11 -10 -10 -10 ------------ Run | Yrd Mat Min Sub Used RIF Installer . | . . . . Robots Hacked . | . . . . Non-combat . | . . . . Combat . | . . . . Robot Hacks Applied . | . . . . Relay Couplers Released . | . . . . Fabnet Peak Effective % . | . . . . Robots Rewired . | . . . . Allies Hacked . | . . . . Hacks Repelled . | . . . . Allies | -11 -10 -10 -10 -------- Run | Yrd Mat Min Sub Total Allies 3 | . . 3 . Largest Group 3 | . . 3 2 Highest-Rated Group 40 | . . 40 32 Highest-Rated Ally 16 | . . 16 16 Total Orders . | . . . . Ally Attacks 28 | . . 23 5 Total Damage 289 | . . 231 58 Kills 5 | . . 5 . Allies Corrupted . | . . . . Allies Melted . | . . . . Intel | -11 -10 -10 -10 ------- Run | Yrd Mat Min Sub Active Infowar (turns) 4402 | 90 547 865 2900 Sensors 3430 | . 456 865 2109 Structural 4402 | 90 547 865 2900 Robot Analysis Total . | . . . . Derelict Logs Recovered 3 | . . 1 2 Drone Launches . | . . . . Drone Recoveries . | . . . . Exploration | -11 -10 -10 -10 ------------- Run | Yrd Mat Min Sub Turns Passed 4449 | 120 547 865 2917 Spaces Moved 2343 | 69 323 499 1452 Core 13 | 13 . . . Treads 2330 | 56 323 499 1452 Legs . | . . . . Wheels . | . . . . Hover . | . . . . Flight . | . . . . Fastest Speed 50 | 50 160 160 160 Average Speed 159 | 139 160 160 160 Slowest Speed 160 | 160 160 160 160 Overloaded Moves . | . . . . Propulsion Burnouts . | . . . . Robots Hopped . | . . . . Potential Cave-ins . | . . . . Cave-ins Triggered . | . . . . Exploration Rate (%) 61 | 5 62 95 83 Regions Visited 3 Branch Regions 2 Pre-discovered Areas 1 | . . . 1 Known Exits Taken 3 | 1 1 1 . Unknown Exits Taken . | . . . . Scrap Searched 17 | . . 1 16 Spaces Dug 2 | . . . 2 Terrain Destroyed 2 | . . . 2 Melee . | . . . . Projectile 2 | . . . 2 AOE . | . . . . Terrain Rammed . | . . . . Walls Destroyed . | . . . . Machines Disabled . | . . . . Actions | -11 -10 -10 -10 --------- Run | Yrd Mat Min Sub Total 2706 | 88 344 553 1721 Wait 97 | . . 41 56 Move 2340 | 68 322 498 1452 Hop . | . . . . Pick Up 25 | 9 5 6 5 Fast Attach 6 | . 4 . 2 Attach 9 | 6 . . 3 Detach . | . . . . Swap 13 | . 3 . 10 Drop 13 | . 5 1 7 Fire 203 | 5 5 7 186 Melee . | . . . . Ram . | . . . . Kick . | . . . . Crush . | . . . . Escape Stasis . | . . . . Rewire . | . . . . Trap . | . . . . Miscellaneous . | . . . . Route ------- -11/Scrapyard -10/Materials (discovered 4 exits: *Mat x2 / *Min x2) -10/Mines (discovered 3 exits: *Mat x2 / *Sub) -10/Subcaves (discovered 2 exits: *Mat / *Rec) History --------- Turn | Location | Event 9 | -11/Scrapyard | Identified exit to Materials 9 | -11/Scrapyard | Discovered exit to Materials (range 15) 121 | -11/Scrapyard | Entered Materials 121 | -10/Materials | Evolved 1 slot: Utility x1 121 | -10/Materials | Identified exit to Mines 121 | -10/Materials | Discovered exit to Mines (range 8) 122 | -10/Materials | Met a group of wandering Federalists 280 | -10/Materials | Identified exit to Materials 280 | -10/Materials | Discovered exit to Materials (range 15) 301 | -10/Materials | Build established: Hacker-Mutant 331 | -10/Materials | Discovered exit to Mines (range 14) 408 | -10/Materials | Discovered exit to Materials (range 15) 668 | -10/Materials | Entered Mines 670 | -10/Mines | Assisted by bots powering up and referring to "LRC-V3" 684 | -10/Mines | Discovered exit to Materials (range 5) 842 | -10/Mines | A weapon hastily lodged in a ceiling crevice suddenly fell to the ground 933 | -10/Mines | Discovered exit to Materials (range 6) 1404 | -10/Mines | Learned Materials security intel 1505 | -10/Mines | Identified exit to Subcaves 1505 | -10/Mines | Discovered exit to Subcaves (range 10) 1533 | -10/Mines | Entered Subcaves 1533 | -10/Subcaves | Accompanied by 2 allies 1534 | -10/Subcaves | Approached by a straggling Scientist 1959 | -10/Subcaves | Learned location of Zion (-7) 1959 | -10/Subcaves | Met a Zionite searching for "candidates" 2482 | -10/Subcaves | Ambushed by angry Subdweller bent on revenge 2514 | -10/Subcaves | A swath of the cavern ceiling suddenly collapsed 2539 | -10/Subcaves | Learned 2 Materials zone layouts 2568 | -10/Subcaves | Learned Materials emergency access door positions 2830 | -10/Subcaves | Identified exit to Materials 2830 | -10/Subcaves | Discovered exit to Materials (range 13) 2910 | -10/Subcaves | Visited 4L-MR0's lab 2956 | -10/Subcaves | Shifting Twisted Machinery released Sub. Monowheel 2986 | -10/Subcaves | Shifting Twisted Machinery released Battle Cannon 2990 | -10/Subcaves | Shifting Twisted Machinery released Sub. Shrapnel Launcher 2990 | -10/Subcaves | Shifting Twisted Machinery released Mak. Thermal Plating 3223 | -10/Subcaves | A swath of the cavern ceiling suddenly collapsed 3676 | -10/Subcaves | Lost 3 parts (1n1u1w) 3681 | -10/Subcaves | Identified exit to Recycling 3681 | -10/Subcaves | Discovered exit to Recycling (range 16) 3903 | -10/Subcaves | Core integrity fell below 50% 3986 | -10/Subcaves | Disturbed a concealed Subdweller 3990 | -10/Subcaves | Core integrity fell below 20% 4357 | -10/Subcaves | Disturbed a concealed Subdweller 4450 | -10/Subcaves | Destroyed by 98-VJI(R) with Subdweller Shrapnel Launcher Last Messages --------------- 04071_ Acquired Lgt. Treads. 04073_ Dropped Lgt. Treads. 04091_ EA-GAD(O) puts together Sub. Beam Cannon. 04357_ K2-K46(R) angrily emerges from the Twisted Machinery. 04362_ K2-K46(R) affixes Scrap Shield Fragment to Scrap Shield. 04364_ Sub. Monowheel melted. 04364_ K2-K46(R) destroyed. 04369_ Acquired 55 matter. 04372_ Acquired Spk. Treads. 04378_ Searching scrap... 04378_ Found Sub. Optics. 04378_ Found Sub. Laser. 04378_ Found 30 Matter. 04379_ Searching scrap... 04379_ Found Sub. Monowheel. 04379_ Found 31 Matter. 04433_ Structural Scanner destroyed. 04435_ 98-VJI(R) suffers critical hit (Burn). Map ----- +----------------------------------------------------+ | | | | | | | | | | | | | | | | | ?????????????????????????????????????????????????? | | ?????????????????????????????????????????????????? | | ?????????????????????????????????????????????????? | | ?????????????????????????????????????????????????? | | ?????????????????????????????????????????????????? | | ?????????????????????????????????????????????????? | | ?????????????????????????????????????????????????? | | ?????????????????????????????????????????????????? | | ?????????????????????????????????????????????????? | | ?????????????????????????????????????????????????? | | ########?????????????????????????????????????????? | | ########??????????######?????????????????????????? | | #"[%!"##??????????# ###??????????????????????? | | #%=## ###?????????# ###????????????????????? | | #### ####????????# ###??????????????????? | | ###" # ###????????# ;;### ?###????????????? | | # ## # ##????#####; ### ###???????????? | | # " " ###########; @ ###??????????? | | # ######## ## ##??????????? | | # ### ## R R ????????? | | ## ## ; ;;;# """ ?????????? | | ## ## ;;###### "?????????????? | | ## ########??????? ????????????? | | ## #####?????????? ??????????? | | ## # ##?????????????? ??????????? | | ## ##???????????????????????????? | | #### ## ##???????????????????????????? | | ##### ### ##???????????????????????????? | | ##### ### ##???????????????????????????? | | # ## #### ###??????????????????????????? | | # ### ##### ###??????????????????????????? | | ## #### ##??????????????????????????? | | ### ##??????????????????????????? | | ## ##??????????????????????????? | | ## #####??????????????????????????? | | #### #####??????????????????????????? | | ###### ##?????????????????????????????? | | ###### ### ###????????????????????????????? | | ##### ### ###????????????????????????????? | | #?## ### ##????????????????????????????? | | ??## ### ###????????????????????????????? | | ??### ### ###????????????????????????????? | +----------------------------------------------------+ Best States ------------- Heat Dissipation 39 Energy Generation 10 Energy Capacity 250 Matter Stores 300 Matter Capacity 300 Sight Range 16 Robot Scan Range 14 Terrain Scan Density 10 Armor Coverage 150 Resistance: KI 35 Resistance: TH 35 Resistance: EX 35 Resistance: EM 35 Resistance: I 35 Resistance: S 35 Resistance: P 35 Evasion (%) 50 Recoil Reduction 2 Offensive Hacking 20 Item Schematics ----------------- None Robot Schematics ------------------ None Fabricated ------------ Nothing Repaired ---------- Nothing Studied --------- None Alien Tech Used ----------------- None Achievements -------------- None Challenges ------------ None Game ------ Seed MediumCombatInterpreter Manual? 0 Play Time 00:18:13 Cumulative 273.5 hours Start 2026.01.12 @ 12:32:44 End 2026.01.12 @ 12:48:33 Sessions 1 Manual Loads 0 Difficulty Explorer Special Mode None Game No. 427 Rogue 0 Adventurer 0 Explorer 427 Win Type - Total 0 Types 0/0/0/0/0/0/0/0/0/0 Lore% 73 Gallery% 69 Achievement% 54 Wizard Run 0 Options --------- Layout 1 ASCII 0 Keyboard 0 Movement Mouse Keybinds 1 Fullscreen 1 Font 24/Smallcaps Map View 50x35 Zoom Use 0% Tactical HUD 1 Map Filters NONE Filters NONE Steam 1 RUN: 01e73c98-8e84-42e3-b352-da28263efb3d